Cogmind - Beta 12 @@@ ROGUE MODE // 2023.07.15 @ 16:29:32 Player: woons Result: Destroyed by S-43 Plague with Heavy Machine Gun Performance ------------- Evolutions (7) 3500 Regions Visited (18) 3600 Robots Destroyed (52) 260 Value Destroyed (876) 876 Prototype IDs (16) 320 Alien Tech Used (0) 0 Bonus (0) 0 TOTAL SCORE: 8556 Bonus ------- None Cogmind --------- Core Integrity 0/1300 Matter 153/300 Energy 245/700 System Corruption 1% Temperature Cool (2) Movement Flying (35) Location -3/Research Parts ------- > --- POWER (2) -------- (None) > --- PROPULSION (5) --- Cooled Impulse Thruster > --- UTILITY (12) ----- Experimental Energy Well Experimental Signal Interpreter Improved Hacking Suite > --- WEAPON (2) ------- (None) > --- INVENTORY (5) ---- Antimatter Reactor Linear Accelerator Gravity Flail Lance Peak State ------------ > --- POWER ------------ Micro Antimatter Reactor Quantum Reactor > --- PROPULSION ------- Impulse Thruster Cooled Field Propulsion Drive Cooled Field Propulsion Drive Q-thruster Q-thruster > --- UTILITY ---------- Improved Coolant Injector Experimental Matter Compressor Advanced Weight Redist. System Long-range Sensor Array Experimental Signal Interpreter 0b10 Decoder Chip [Looter] Melee Analysis Suite Graphene Brace Thermal Shield Improved Hacking Suite > --- WEAPON ----------- Gravity Flail Lance > --- INVENTORY -------- Antimatter Reactor Impulse Thruster Field Propulsion Array Linear Accelerator [Rating: 131] Favorites ----------- Power Enhanced Nuclear Core Engine Ion Engine Power Core Enhanced Nuclear Core Reactor Quantum Reactor Propulsion Light Treads Treads Light Treads Leg Aluminum Leg Wheel Wheel Hover Unit Makeshift Hover Unit Flight Unit Flight Unit Utility Experimental Sensor Array Device Experimental Sensor Array Storage Large Storage Unit Processor Improved Signal Interpreter Hackware Advanced Hacking Suite Protection Layered Medium Armor Plating Weapon Medium Laser Energy Gun Medium Laser Energy Cannon Heavy Phase Cannon Ballistic Gun Flak Gun Ballistic Cannon Gauss Cannon Special Weapon Mining Laser Impact Weapon Gravity Flail Slashing Weapon Makeshift Sword Piercing Weapon Makeshift Spear Special Melee Weapon Advanced Datajack Build | -11 -10 -9 -9 -8 -7 -7 -7 -6 -6 -6 -5 -5 -5 -5 -5 -4 -4 -3 ------- Run | Jun Mat Mat Min Mat Fac Low Low Fac Low Low Fac Was Fac Upp Upp Fac Arm Res Slots Evolved 14 | . . 2 . 2 2 . . 2 . . 2 . . . . 2 . 2 Power 1 | . . . . . . . . . . . . . . . . 1 . . Propulsion 3 | . . . . 1 1 . . . . . . . . . . 1 . . Utility 10 | . . 2 . 1 1 . . 2 . . 2 . . . . . . 2 Weapon . | . . . . . . . . . . . . . . . . . . . Parts Attached 179 | 4 10 23 13 13 18 8 1 3 8 2 2 7 10 . 3 23 10 21 Power 27 | . 1 5 4 3 8 1 . . . . . . . . . 2 1 2 Engine 13 | . 1 5 4 2 1 . . . . . . . . . . . . . Core 10 | . . . . 1 7 1 . . . . . . . . . 1 . . Reactor 4 | . . . . . . . . . . . . . . . . 1 1 2 Propulsion 45 | 2 3 7 1 1 . 2 . 1 4 . . . 3 . . 9 . 12 Treads 6 | 2 3 1 . . . . . . . . . . . . . . . . Leg 1 | . . . . . . . . . . . . . . . . 1 . . Wheel 1 | . . 1 . . . . . . . . . . . . . . . . Hover 4 | . . . . . . . . . 4 . . . . . . . . . Flight 33 | . . 5 1 1 . 2 . 1 . . . . 3 . . 8 . 12 Utility 75 | 2 3 5 6 7 6 2 . 2 2 2 1 7 5 . 2 12 7 4 Device 46 | 2 1 3 5 5 3 1 . 1 . 1 1 6 4 . . 6 6 1 Storage 6 | . 2 1 . . . . . . . 1 . . . . . . . 2 Processor 9 | . . 1 1 . 2 . . . . . . 1 . . 1 2 1 . Hackware 4 | . . . . . . . . . . . . . . . 1 2 . 1 Protection 10 | . . . . 2 1 1 . 1 2 . . . 1 . . 2 . . Artifact . | . . . . . . . . . . . . . . . . . . . Weapon 32 | . 3 6 2 2 4 3 1 . 2 . 1 . 2 . 1 . 2 3 Energy Gun 10 | . 3 2 1 1 2 . . . 1 . . . . . . . . . Energy Cannon 5 | . . 2 1 1 . . . . . . . . 1 . . . . . Ballistic Gun 3 | . . 1 . . . 1 1 . . . . . . . . . . . Ballistic Cannon 1 | . . . . . . 1 . . . . . . . . . . . . Launcher . | . . . . . . . . . . . . . . . . . . . Special Weapon 4 | . . 1 . . 2 . . . . . 1 . . . . . . . Impact Weapon 4 | . . . . . . . . . 1 . . . . . . . 1 2 Slashing Weapon 2 | . . . . . . 1 . . . . . . . . . . 1 . Piercing Weapon 2 | . . . . . . . . . . . . . . . 1 . . 1 Special Melee Weapon 1 | . . . . . . . . . . . . . 1 . . . . . Unidentified Prototypes 15 | . . 2 1 . 2 . . . . . . . 1 . . 4 2 3 Corrupted Parts 1 | . . . 1 . . . . . . . . . . . . . . . System Corruption 2 | . . . 2 . . . . . . . . . . . . . . . Parts Lost 59 | . 2 9 . . 2 5 . 1 . 7 1 3 2 3 . 2 6 16 Power 5 | . 1 2 . . . 1 . . . . . . . . . . . 1 Propulsion 20 | . . 3 . . 2 2 . . . 4 . . . 1 . 1 . 7 Utility 25 | . . 2 . . . 1 . . . 2 . 3 1 1 . 1 6 8 Weapon 9 | . 1 2 . . . 1 . 1 . 1 1 . 1 1 . . . . Highest Loss Streak 13 | . 1 5 . . 1 4 . 1 . 7 1 3 1 2 . 1 4 13 To Critical Strikes 2 | . . 2 . . . . . . . . . . . . . . . . Average Slot Usage (%) 69 | . 98 84 89 90 77 65 67 64 75 88 7 18 22 37 36 64 64 69 Engine 3 | . 13 8 11 8 . . . . . . . . . . . . . . Core 2 | . . . . . 6 6 7 6 6 5 . . . . . 3 . . Treads 5 | . 28 10 . . . . . . . . . . . . . . . . Hover 1 | . . . . . . . . . 7 22 . . . . . . . . Flight 10 | . . 5 21 26 17 9 7 9 9 . . . 8 14 11 15 15 18 Device 19 | . 14 14 28 28 26 25 30 27 33 22 3 13 6 11 11 20 17 19 Storage 3 | . 14 10 2 . . . . . . 5 . . . . . . . 3 Processor 7 | . . 11 13 9 7 15 15 13 13 12 . 3 . . 4 8 11 12 Protection 2 | . . . . 6 6 . . . 1 5 . . 3 4 . 4 4 . Energy Gun 6 | . 26 13 . 7 4 . . . 1 4 . . . . . . . . Energy Cannon 1 | . . 6 8 3 . . . . . . . . 2 4 . . . . Naked Turns 181 | . . . . . . . . . . 14 13 44 110 . . . . . Heaviest Build 49 | 12 29 34 13 21 21 18 15 16 27 49 2 5 19 18 5 40 37 41 Greatest Support 57 | 40 40 40 14 21 21 19 15 18 57 57 3 3 26 20 20 37 46 47 Greatest Overweight (x) 4 | . . 3 1 . . 4 . . . 3 . 1 . . . 1 . . Average Overweight (x) . | . . . . . . . . . . . . . . . . . . . Largest Inventory Capacity 15 | 8 15 15 5 5 5 5 5 5 5 15 5 5 5 5 5 5 5 5 Average Capacity 6 | 8 11 12 5 5 5 5 5 5 5 14 5 5 5 5 5 5 5 5 Most Carried 15 | 8 13 15 5 5 5 5 5 5 5 9 4 4 5 5 5 5 5 5 Average Carried 5 | 6 9 10 4 4 4 4 4 4 4 7 3 2 3 5 5 4 4 4 Final Capacity 15 | 8 15 5 5 5 5 5 5 5 5 5 5 5 5 5 5 5 5 5 Final Carried 13 | 8 13 5 5 5 5 5 4 5 4 4 4 2 5 5 5 5 5 4 Class Distribution -------------------- 69% | Mutant 9% | Scout 6% | Scavenger-Mutant 5% | Sprinter 5% | Derelict-Mutant Dominant Class ---------------- Mutant | -10/Materials Scavenger-Mutant | -9/Materials Scout | -9/Mines Scout | -8/Materials Mutant | -7/Factory Mutant | -7/Lower Caves Mutant | -7/Lower Caves Mutant | -6/Factory Mutant | -6/Lower Caves Derelict-Mutant | -6/Lower Caves Mutant | -5/Factory Mutant | -5/Waste Mutant | -5/Factory Mutant | -5/Upper Caves Mutant | -5/Upper Caves Mutant | -4/Factory Mutant | -4/Armory Sprinter | -3/Research Resources | -11 -10 -9 -9 -8 -7 -7 -7 -6 -6 -6 -5 -5 -5 -5 -5 -4 -4 -3 ----------- Run | Jun Mat Mat Min Mat Fac Low Low Fac Low Low Fac Was Fac Upp Upp Fac Arm Res Matter Collected 1840 | 220 114 164 99 18 31 377 141 . 170 10 . . 183 . 30 120 5 158 Remotely . | . . . . . . . . . . . . . . . . . . . Salvage Created 2263 | 79 410 829 168 41 31 202 141 110 105 . . . . . . 120 . 27 Parts 105 | 5 21 43 9 5 4 3 1 8 . . . . . . . 6 . . Haulers Intercepted 5 | . 2 3 . . . . . . . . . . . . . . . . Recyclers Shooed 4 | . . 4 . . . . . . . . . . . . . . . . Parts Field Recycled . | . . . . . . . . . . . . . . . . . . . Retrieved Matter . | . . . . . . . . . . . . . . . . . . . Parts Self-Destructed 8 | . . . . . . 5 1 . . 2 . . . . . . . . Prevented . | . . . . . . . . . . . . . . . . . . . Kills | -11 -10 -9 -9 -8 -7 -7 -7 -6 -6 -6 -5 -5 -5 -5 -5 -4 -4 -3 ------- Run | Jun Mat Mat Min Mat Fac Low Low Fac Low Low Fac Was Fac Upp Upp Fac Arm Res Combat Hostiles Destroyed 22 | . 8 10 . . . 3 . 1 . . . . . . . . . . Melee 2 | . 1 . . . . 1 . . . . . . . . . . . . Guns 15 | . 5 7 . . . 2 . 1 . . . . . . . . . . Cannons 3 | . . 3 . . . . . . . . . . . . . . . . Classes Destroyed 12 | 2 5 2 . 1 . 1 . 1 . . . . . . . . . . Worker 7 | . 1 3 . 1 1 . . 1 . . . . . . . . . . Builder 2 | . . . . . . . . 2 . . . . . . . . . . Tunneler 3 | 1 . 1 1 . . . . . . . . . . . . . . . Hauler 5 | . 2 3 . . . . . . . . . . . . . . . . Recycler 8 | 1 . 3 2 . 1 . . . . . . . . . . 1 . . Operator 2 | . . . . 1 . . . . . . . . . . . . . 1 Watcher 3 | . 2 1 . . . . . . . . . . . . . . . . Swarmer 11 | . 3 4 . . . 3 . 1 . . . . . . . . . . Grunt 9 | . 5 4 . . . . . . . . . . . . . . . . Brawler 1 | . . 1 . . . . . . . . . . . . . . . . Sentry 1 | . . 1 . . . . . . . . . . . . . . . . Packrat 3 | . . . . . . 1 . . 2 . . . . . . . . . Samaritan 2 | . . . . . . 2 . . . . . . . . . . . . Best Kill Streak 9 | 2 3 9 2 1 1 3 . 3 . . . . . . . 1 . 1 Combat Bots Only 5 | . 3 5 . . . 3 . 1 . . . . . . . . . . Max Kills in Single Turn 1 | 1 1 1 1 1 1 1 . 1 1 . . . . . . 1 . 1 Gunslinging . | . . . . . . . . . . . . . . . . . . . Exploded . | . . . . . . . . . . . . . . . . . . . Melee 1 | . 1 . . . . 1 . . . . . . . . . . . . Uniques/NPCs Destroyed . | . . . . . . . . . . . . . . . . . . . Combat | -11 -10 -9 -9 -8 -7 -7 -7 -6 -6 -6 -5 -5 -5 -5 -5 -4 -4 -3 -------- Run | Jun Mat Mat Min Mat Fac Low Low Fac Low Low Fac Was Fac Upp Upp Fac Arm Res Damage Taken 8266 | . 761 766 . 73 129 556 14 130 . 1011 81 131 169 598 . 822 663 2362 Core 2668 | . 143 102 . 30 . 164 . 40 . 248 46 131 36 219 . 71 115 1323 Absorbed by Shields 74 | . . . . . . . . . . 66 8 . . . . . . . Core Remaining (%) 73 | 100 42 . 74 94 . . 76 . . 66 . . . . 56 . 83 . Volleys Fired 206 | 4 54 76 3 6 16 22 8 13 . . 3 . 1 . . . . . Largest 2 | 2 2 2 2 2 1 1 1 1 . . 1 . 1 . . . . . Hottest 136 | 90 100 136 123 95 100 48 28 28 . . 20 . 90 . . . . . Shots Fired 295 | 8 94 116 5 9 16 22 8 13 . . 3 . 1 . . . . . Gun 235 | 8 94 85 2 6 1 18 8 13 . . . . . . . . . . Cannon 37 | . . 28 1 3 . 4 . . . . . . 1 . . . . . Launcher . | . . . . . . . . . . . . . . . . . . . Special 23 | . . 3 2 . 15 . . . . . 3 . . . . . . . Kinetic 47 | . . 2 2 . . 22 8 13 . . . . . . . . . . Thermal 244 | 8 94 114 2 6 16 . . . . . 3 . 1 . . . . . Explosive . | . . . . . . . . . . . . . . . . . . . Electromagnetic 4 | . . . 1 3 . . . . . . . . . . . . . . Robot Hit Streak 23 | 4 14 11 3 2 2 8 23 3 . . . . 1 . . . . . Robot Miss Streak 11 | 1 2 5 4 5 11 5 2 11 . . . . . . . . . . Penetration Max . | . . . . . . . . . . . . . . . . . . . Secondary Targets 1 | . . 1 . . . . . . . . . . . . . . . . Max Gunslinging Chain 1 | . . 1 . . . . . . . . . . . . . . . . Shots Hit Robots 201 | 5 65 70 3 4 3 21 8 11 2 1 . . 5 . . 1 1 1 Core Hits 126 | 3 24 31 3 4 2 29 9 20 . . . . . . . 1 . . Critical Kills . | . . . . . . . . . . . . . . . . . . . Critical Parts Destroyed . | . . . . . . . . . . . . . . . . . . . Critical Strikes 6 | . 5 . . . . 1 . . . . . . . . . . . . Burn 5 | . 5 . . . . . . . . . . . . . . . . . Blast 1 | . . . . . . 1 . . . . . . . . . . . . Melee Attacks 18 | . . . . . . 6 . . 2 2 . . 4 . . 1 1 2 Impact 6 | . . . . . . . . . 2 2 . . . . . . 1 1 Slashing 6 | . . . . . . 6 . . . . . . . . . . . . Piercing 2 | . . . . . . . . . . . . . . . . 1 . 1 Sneak Attacks 8 | . . . . . . . . . 2 . . . 4 . . 1 1 . Combat Hostiles 1 | . . . . . . . . . . . . . . . . . 1 . Follow-up Attacks . | . . . . . . . . . . . . . . . . . . . Damage Inflicted 3571 | 56 817 956 61 57 72 410 205 374 202 40 . . 33 . . 57 136 95 Guns 2159 | 56 777 625 15 29 . 319 205 133 . . . . . . . . . . Cannons 469 | . . 331 22 28 . 55 . . . . . . 33 . . . . . Explosions 241 | . . . . . . . . 241 . . . . . . . . . . Melee 566 | . . . . . . 36 . . 202 40 . . . . . 57 136 95 Ramming 40 | . 40 . . . . . . . . . . . . . . . . . Kinetic 727 | . . . 15 . . 374 205 133 . . . . . . . . . . Thermal 1947 | 56 777 956 24 29 72 . . . . . . . 33 . . . . . Explosive . | . . . . . . . . . . . . . . . . . . . Electromagnetic 291 | . . . 22 28 . . . 241 . . . . . . . . . . Impact 473 | . . . . . . . . . 202 40 . . . . . . 136 95 Slashing 36 | . . . . . . 36 . . . . . . . . . . . . Piercing 57 | . . . . . . . . . . . . . . . . 57 . . Highest Corruption 10 | . . 8 10 . . . . . . 2 . . 6 1 1 1 1 1 Average Corruption 4 | . . 7 9 . . . . . . 1 . . 2 1 1 1 1 1 Corruption Purged 5 | . . . . . . . . . . . . . 5 . . . . . Corruption Blocked . | . . . . . . . . . . . . . . . . . . . Effects 30 | . . 13 11 . . . . . . 1 . . 4 1 . . . . Message Errors 12 | . . 4 5 . . . . . . . . . 2 1 . . . . Matter Fused 4 | . . 1 2 . . . . . . 1 . . . . . . . . Heat Flow Errors 3 | . . 1 2 . . . . . . . . . . . . . . . Energy Discharges 3 | . . 1 . . . . . . . . . . 2 . . . . . Parts Fused 1 | . . 1 . . . . . . . . . . . . . . . . Data Loss (minor) 2 | . . 1 1 . . . . . . . . . . . . . . . Data Loss (major) 2 | . . 1 1 . . . . . . . . . . . . . . . Alerts 1 | . . 1 . . . . . . . . . . . . . . . . Weapon Failures 2 | . . 2 . . . . . . . . . . . . . . . . Overload Shots . | . . . . . . . . . . . . . . . . . . . Overflow Damage 275 | . . 2 . . . 7 . . 181 . . . . . . . . 85 Projectiles 9 | . . 2 . . . 7 . . . . . . . . . . . . Explosions . | . . . . . . . . . . . . . . . . . . . Melee 266 | . . . . . . . . . 181 . . . . . . . . 85 Knockbacks 2 | . . . . . . 1 . . . 1 . . . . . . . . Impact 1 | . . . . . . . . . . 1 . . . . . . . . Kinetic 1 | . . . . . . 1 . . . . . . . . . . . . Secondary . | . . . . . . . . . . . . . . . . . . . Self-Inflicted Damage . | . . . . . . . . . . . . . . . . . . . Shots . | . . . . . . . . . . . . . . . . . . . Rammed 24 | . 24 . . . . . . . . . . . . . . . . . Targets Rammed 24 | . 24 . . . . . . . . . . . . . . . . . Kicked . | . . . . . . . . . . . . . . . . . . . Crushed . | . . . . . . . . . . . . . . . . . . . Highest Temperature 342 | 60 342 251 250 120 64 . . . . 1 . . 28 . . . 13 12 Average Temperature 75 | 24 132 98 69 51 17 . . . . 1 . . 14 . . . 8 4 Received Heat Transfer 957 | . 366 141 . 36 . . . . . 60 . . 27 78 . 51 108 90 Effects 3 | . 3 . . . . . . . . . . . . . . . . . Energy Bleed 1 | . 1 . . . . . . . . . . . . . . . . . Interference 1 | . 1 . . . . . . . . . . . . . . . . . Short Circuit 1 | . 1 . . . . . . . . . . . . . . . . . Siege Activations . | . . . . . . . . . . . . . . . . . . . Robots Corrupted . | . . . . . . . . . . . . . . . . . . . Combat Hostiles . | . . . . . . . . . . . . . . . . . . . Parts Fried 5 | . . . . . . . . 2 . . . . . . . . . 3 Impact Corruptions 4 | . . . . . . . . . 3 . . . . . . . . 1 Robots Melted 2 | . 2 . . . . . . . . . . . . . . . . . Combat Hostiles 2 | . 2 . . . . . . . . . . . . . . . . . Parts Melted 6 | . 3 3 . . . . . . . . . . . . . . . . Heat Transferred 4947 | 149 2487 2017 50 57 150 . . . . . . . 37 . . . . . Parts Sabotaged . | . . . . . . . . . . . . . . . . . . . Parts Stolen . | . . . . . . . . . . . . . . . . . . . Parts Stripped . | . . . . . . . . . . . . . . . . . . . Power Chain Reactions 1 | . . . . . . . . 1 . . . . . . . . . . Missiles Intercepted . | . . . . . . . . . . . . . . . . . . . Alert | -11 -10 -9 -9 -8 -7 -7 -7 -6 -6 -6 -5 -5 -5 -5 -5 -4 -4 -3 ------- Run | Jun Mat Mat Min Mat Fac Low Low Fac Low Low Fac Was Fac Upp Upp Fac Arm Res Peak Influence 599 | 10 144 285 50 183 499 . . 370 . . 44 15 135 . . 306 599 348 Initial 314 | . 6 52 34 . 82 . . 107 . . 9 11 10 . . 80 149 314 Average 110 | 6 49 156 43 59 183 . . 136 . . 28 10 17 . . 151 328 187 Maximum Alert Level 2 | . . 1 . . 2 . . 1 . . . . . . . 1 2 1 Low Security (%) 79 | 100 100 71 100 100 65 . . 70 . . 100 100 100 . . 75 33 37 Level 1 16 | . . 28 . . 19 . . 29 . . . . . . . 24 30 62 Level 2 3 | . . . . . 14 . . . . . . . . . . . 35 . Level 3 . | . . . . . . . . . . . . . . . . . . . Level 4 . | . . . . . . . . . . . . . . . . . . . Level 5 . | . . . . . . . . . . . . . . . . . . . High Security . | . . . . . . . . . . . . . . . . . . . Max Security . | . . . . . . . . . . . . . . . . . . . Squads Dispatched 33 | . 1 2 1 3 5 . . 5 . . 1 . . . . 6 4 5 Investigation 13 | . . 1 . 2 3 . . 2 . . 1 . . . . 1 . 3 Extermination 2 | . . . . . . . . . . . . . . . . 1 . 1 Reinforcement 17 | . 1 1 . 1 2 . . 3 . . . . . . . 4 4 1 Assault 1 | . . . 1 . . . . . . . . . . . . . . . Garrison . | . . . . . . . . . . . . . . . . . . . Intercept . | . . . . . . . . . . . . . . . . . . . Searches Triggered . | . . . . . . . . . . . . . . . . . . . Construction Impeded . | . . . . . . . . . . . . . . . . . . . Haulers Reinforced . | . . . . . . . . . . . . . . . . . . . Active Scanning Responses . | . . . . . . . . . . . . . . . . . . . Cargo Convoy Interrupts . | . . . . . . . . . . . . . . . . . . . Stealth | -11 -10 -9 -9 -8 -7 -7 -7 -6 -6 -6 -5 -5 -5 -5 -5 -4 -4 -3 --------- Run | Jun Mat Mat Min Mat Fac Low Low Fac Low Low Fac Was Fac Upp Upp Fac Arm Res Distress Signals 8 | . . 2 . . . . . 1 . . . . . . . 1 3 1 Communications Jammed . | . . . . . . . . . . . . . . . . . . . Distress Signals . | . . . . . . . . . . . . . . . . . . . Times Spotted 232 | . 16 18 . 7 5 7 1 21 . 6 7 6 11 12 . 19 57 39 Peak Tracking Total 32 | . 3 6 . 5 5 4 3 13 . 5 7 6 9 10 . 8 32 20 Tactical Retreats 36 | . 1 . . 3 2 2 1 3 . 2 . . 3 2 . 6 7 4 Traps | -11 -10 -9 -9 -8 -7 -7 -7 -6 -6 -6 -5 -5 -5 -5 -5 -4 -4 -3 ------- Run | Jun Mat Mat Min Mat Fac Low Low Fac Low Low Fac Was Fac Upp Upp Fac Arm Res Traps Triggered 8 | . . . . . 3 . . . . . 2 . 1 . . 1 1 . Indirectly . | . . . . . . . . . . . . . . . . . . . Trap Hack Attempts . | . . . . . . . . . . . . . . . . . . . Triggered . | . . . . . . . . . . . . . . . . . . . Disarmed 6 | . . . . . . . . . . . . . . . . . . 6 Reprogrammed . | . . . . . . . . . . . . . . . . . . . Reused . | . . . . . . . . . . . . . . . . . . . Traps Extracted . | . . . . . . . . . . . . . . . . . . . Installed . | . . . . . . . . . . . . . . . . . . . Triggered 2 | . . . . . . 1 . . . 1 . . . . . . . . Machines | -11 -10 -9 -9 -8 -7 -7 -7 -6 -6 -6 -5 -5 -5 -5 -5 -4 -4 -3 ---------- Run | Jun Mat Mat Min Mat Fac Low Low Fac Low Low Fac Was Fac Upp Upp Fac Arm Res Machines Disabled 11 | . . . . . . . . 11 . . . . . . . . . . Max in Single Turn 6 | . . . . . . . . 6 . . . . . . . . . . Machines Repaired . | . . . . . . . . . . . . . . . . . . . Machines Sabotaged . | . . . . . . . . . . . . . . . . . . . Overloaded Fab Kills . | . . . . . . . . . . . . . . . . . . . Hacking | -11 -10 -9 -9 -8 -7 -7 -7 -6 -6 -6 -5 -5 -5 -5 -5 -4 -4 -3 --------- Run | Jun Mat Mat Min Mat Fac Low Low Fac Low Low Fac Was Fac Upp Upp Fac Arm Res Machines Accessed 34 | . 4 2 . 6 5 . . 3 1 . 2 . 3 1 . 3 . 4 Terminals 21 | . 4 1 . 4 3 . . 2 . . 1 . 1 . . 2 . 3 Fabricators 3 | . . . . . 1 . . 1 . . . . 1 . . . . . Repair Stations 5 | . . 1 . 1 . . . . . . 1 . . . . 1 . 1 Recycling Units 1 | . . . . . . . . . . . . . 1 . . . . . Scanalyzers 2 | . . . . 1 1 . . . . . . . . . . . . . Garrison Access . | . . . . . . . . . . . . . . . . . . . Total Hacks 89 | . 9 6 . 15 15 . . 9 1 . 5 . 3 1 . 8 . 17 Successful 46 | . 6 3 . 7 5 . . 6 1 . 2 . 3 1 . 3 . 9 Failed 43 | . 3 3 . 8 10 . . 3 . . 3 . . . . 5 . 8 Catastrophic 9 | . . . . 1 2 . . 1 . . 2 . . . . 2 . 1 Database Lockouts . | . . . . . . . . . . . . . . . . . . . Manual . | . . . . . . . . . . . . . . . . . . . Terminals 58 | . 9 2 . 10 9 . . 5 . . 2 . 1 . . 5 . 15 Fabricators 8 | . . . . . 3 . . 4 . . . . 1 . . . . . Repair Stations 15 | . . 4 . 3 . . . . . . 3 . . . . 3 . 2 Recycling Units 1 | . . . . . . . . . . . . . 1 . . . . . Scanalyzers 5 | . . . . 2 3 . . . . . . . . . . . . . Garrison Access . | . . . . . . . . . . . . . . . . . . . Terminal Hacks 29 | . 6 1 . 3 3 . . 2 1 . 1 . 1 1 . 2 . 8 Record 8 | . 1 . . . 1 . . . . . 1 . 1 . . 1 . 3 Open Door 2 | . . . . . . . . . 1 . . . . 1 . . . . Branch Access Points 3 | . 1 . . . . . . . . . . . . . . 1 . 1 Emergency Access Points 1 | . 1 . . . . . . . . . . . . . . . . . Recycling Unit Index 1 | . . . . . . . . . . . . . . . . . . 1 Unreport Threat 3 | . . . . 1 . . . 1 . . . . . . . . . 1 Locate Traps 1 | . . . . . . . . . . . . . . . . . . 1 Disarm Traps 1 | . . . . . . . . . . . . . . . . . . 1 Transport Status 1 | . 1 . . . . . . . . . . . . . . . . . Reinforcement Status 1 | . . . . . 1 . . . . . . . . . . . . . Recall Reinforcements 1 | . . . . . 1 . . . . . . . . . . . . . Zone Layout 6 | . 2 1 . 2 . . . 1 . . . . . . . . . . Fabricator Hacks 5 | . . . . . . . . 4 . . . . 1 . . . . . Network Status 1 | . . . . . . . . 1 . . . . . . . . . . Load Schematic 1 | . . . . . . . . 1 . . . . . . . . . . Build 3 | . . . . . . . . 2 . . . . 1 . . . . . Repair Station Hacks 7 | . . 2 . 2 . . . . . . 1 . . . . 1 . 1 Scan Component 6 | . . 2 . 1 . . . . . . 1 . . . . 1 . 1 Refit 1 | . . . . 1 . . . . . . . . . . . . . . Recycling Unit Hacks 1 | . . . . . . . . . . . . . 1 . . . . . Retrieve Components 1 | . . . . . . . . . . . . . 1 . . . . . Scanalyzer 4 | . . . . 2 2 . . . . . . . . . . . . . Insert Component 2 | . . . . 1 1 . . . . . . . . . . . . . Analyze 2 | . . . . 1 1 . . . . . . . . . . . . . Garrison Access Hacks . | . . . . . . . . . . . . . . . . . . . Unauthorized Hacks . | . . . . . . . . . . . . . . . . . . . Terminals . | . . . . . . . . . . . . . . . . . . . Fabricators . | . . . . . . . . . . . . . . . . . . . Repair Stations . | . . . . . . . . . . . . . . . . . . . Recycling Units . | . . . . . . . . . . . . . . . . . . . Scanalyzers . | . . . . . . . . . . . . . . . . . . . Garrison Access . | . . . . . . . . . . . . . . . . . . . Data Cores Recovered 2 | . . . . 1 . . . . . . . . . . . . . 1 Used 1 | . . . . . . . . . . . . . . . . . . 1 Hacking Detections 23 | . 1 1 . 4 4 . . 2 . . 2 . 2 . . 3 . 4 Full Trace Events 13 | . . 1 . 2 3 . . 2 . . 1 . . . . 1 . 3 Feedback Events 3 | . . 1 . . . . . . . . . . . . . 1 . 1 Corruption 1 | . . 1 . . . . . . . . . . . . . . . . Hackware Fried 2 | . . . . . . . . . . . . . . . . 1 . 1 Feedback Blocked . | . . . . . . . . . . . . . . . . . . . Robot Schematics Acquired . | . . . . . . . . . . . . . . . . . . . Robots Built 2 | . . . . . . . . . . . . . 2 . . . . . Authchips . | . . . . . . . . . . . . . . . . . . . Time 76 | . . . . . . . . . . . . . 76 . . . . . Total Robot Build Rating 10 | . . . . . . . . . . . . . 10 . . . . . Part Schematics Acquired 2 | . . . . 1 1 . . . . . . . . . . . . . Parts Built 2 | . . . . . . . . 2 . . . . . . . . . . Authchips . | . . . . . . . . . . . . . . . . . . . Time 190 | . . . . . . . . 190 . . . . . . . . . . Total Part Build Rating 10 | . . . . . . . . 10 . . . . . . . . . . Parts Repaired . | . . . . . . . . . . . . . . . . . . . Time . | . . . . . . . . . . . . . . . . . . . Parts Recycled . | . . . . . . . . . . . . . . . . . . . Recycled Matter . | . . . . . . . . . . . . . . . . . . . Retrieved Matter . | . . . . . . . . . . . . . . . . . . . Retrieved Components 2 | . . . . . . . . . . . . . 2 . . . . . Parts Scanalyzed 2 | . . . . 1 1 . . . . . . . . . . . . . Part Schematics Acquired 2 | . . . . 1 1 . . . . . . . . . . . . . Parts Damaged 1 | . . . . . 1 . . . . . . . . . . . . . Bothacking | -11 -10 -9 -9 -8 -7 -7 -7 -6 -6 -6 -5 -5 -5 -5 -5 -4 -4 -3 ------------ Run | Jun Mat Mat Min Mat Fac Low Low Fac Low Low Fac Was Fac Upp Upp Fac Arm Res Used RIF Installer . | . . . . . . . . . . . . . . . . . . . Robots Hacked 1 | . . . . . . . . . . . . . 1 . . . . . Non-combat 1 | . . . . . . . . . . . . . 1 . . . . . Combat . | . . . . . . . . . . . . . . . . . . . Robot Hacks Applied 1 | . . . . . . . . . . . . . 1 . . . . . find_recycling 1 | . . . . . . . . . . . . . 1 . . . . . Relay Couplers Released . | . . . . . . . . . . . . . . . . . . . Fabnet Peak Effective % . | . . . . . . . . . . . . . . . . . . . Robots Rewired . | . . . . . . . . . . . . . . . . . . . Allies Hacked . | . . . . . . . . . . . . . . . . . . . Hacks Repelled . | . . . . . . . . . . . . . . . . . . . Allies | -11 -10 -9 -9 -8 -7 -7 -7 -6 -6 -6 -5 -5 -5 -5 -5 -4 -4 -3 -------- Run | Jun Mat Mat Min Mat Fac Low Low Fac Low Low Fac Was Fac Upp Upp Fac Arm Res Total Allies 5 | . . . 3 . . . . . . . . . 2 . . . . . Largest Group 3 | . . . 3 . . . . . . . . . 2 . . . . . Highest-Rated Group 40 | . . . 40 . . . . . . . . . 28 . . . . . Highest-Rated Ally 16 | . . . 16 . . . . . . . . . 14 . . . . . Total Orders 3 | . . . . . . . . . . . . . 2 . . . 1 . FOLLOW 1 | . . . . . . . . . . . . . 1 . . . . . GUARD 1 | . . . . . . . . . . . . . 1 . . . . . EXPLORE 1 | . . . . . . . . . . . . . . . . . 1 . Ally Attacks 11 | . . . 11 . . . . . . . . . . . . . . . Total Damage 121 | . . . 121 . . . . . . . . . . . . . . . Kills . | . . . . . . . . . . . . . . . . . . . Allies Corrupted . | . . . . . . . . . . . . . . . . . . . Allies Melted . | . . . . . . . . . . . . . . . . . . . Intel | -11 -10 -9 -9 -8 -7 -7 -7 -6 -6 -6 -5 -5 -5 -5 -5 -4 -4 -3 ------- Run | Jun Mat Mat Min Mat Fac Low Low Fac Low Low Fac Was Fac Upp Upp Fac Arm Res Robot Analysis Total . | . . . . . . . . . . . . . . . . . . . Derelict Logs Recovered 5 | . . . . . . 1 . . 1 1 . . . . 2 . . . Drone Launches 3 | . . . . . . . . . . . . . . . . . 3 . Drone Recoveries . | . . . . . . . . . . . . . . . . . . . Decoded 0b10 Intel 60 | . . . . . . . . . . . . . . . . 27 14 19 Items 60 | . . . . . . . . . . . . . . . . 27 14 19 Exploration | -11 -10 -9 -9 -8 -7 -7 -7 -6 -6 -6 -5 -5 -5 -5 -5 -4 -4 -3 ------------- Run | Jun Mat Mat Min Mat Fac Low Low Fac Low Low Fac Was Fac Upp Upp Fac Arm Res Turns Passed 6869 | 64 1077 483 269 262 708 485 69 340 435 252 90 322 534 162 126 374 242 575 Spaces Moved 9464 | 33 439 251 604 510 1307 662 110 543 848 382 126 165 543 424 312 835 592 778 Core 523 | . . . . . . 104 . . . 35 126 165 67 . . . . 26 Treads 520 | 7 439 74 . . . . . . . . . . . . . . . . Legs 26 | 26 . . . . . . . . . . . . . . . . . . Wheels 23 | . . 23 . . . . . . . . . . . . . . . . Hover 474 | . . . . . . . . . 127 347 . . . . . . . . Flight 7898 | . . 154 604 510 1307 558 110 543 721 . . . 476 424 312 835 592 752 Fastest Speed 28 | 120 160 34 37 32 32 34 40 34 34 50 50 50 35 37 39 32 34 28 Average Speed 46 | 128 160 82 37 32 33 61 40 35 37 60 50 57 41 37 39 39 34 32 Slowest Speed 250 | 160 160 240 120 37 35 250 40 40 70 200 50 100 50 39 39 109 34 50 Overloaded Moves . | . . . . . . . . . . . . . . . . . . . Propulsion Burnouts . | . . . . . . . . . . . . . . . . . . . Robots Hopped 42 | . . . 5 2 1 2 . 1 1 . . . 5 2 1 1 6 15 Cave-ins Triggered . | . . . . . . . . . . . . . . . . . . . Exploration Rate (%) 41 | 3 44 17 87 42 21 84 13 19 90 48 4 77 19 62 51 30 57 25 Regions Visited 18 Branch Regions 8 Pre-discovered Areas . | . . . . . . . . . . . . . . . . . . . Known Exits Taken 10 | . . 1 1 1 1 1 1 1 1 . . . . . . 1 1 . Unknown Exits Taken 6 | 1 1 . . . . . . . . 1 . . 1 1 1 . . . Scrap Searched 18 | . . . 2 . . 7 . . 4 2 . . . 1 2 . . . Spaces Dug 2 | . . 2 . . . . . . . . . . . . . . . . Terrain Destroyed 5 | . . 3 1 . . 1 . . . . . . . . . . . . Melee . | . . . . . . . . . . . . . . . . . . . Projectile 5 | . . 3 1 . . 1 . . . . . . . . . . . . AOE . | . . . . . . . . . . . . . . . . . . . Terrain Rammed . | . . . . . . . . . . . . . . . . . . . Walls Destroyed . | . . . . . . . . . . . . . . . . . . . Machines Disabled . | . . . . . . . . . . . . . . . . . . . Actions | -11 -10 -9 -9 -8 -7 -7 -7 -6 -6 -6 -5 -5 -5 -5 -5 -4 -4 -3 --------- Run | Jun Mat Mat Min Mat Fac Low Low Fac Low Low Fac Was Fac Upp Upp Fac Arm Res Total 11488 | 48 708 403 635 597 1532 708 126 677 957 400 146 388 845 423 313 877 622 1083 Wait 1420 | . 165 31 9 59 135 9 8 117 98 4 . 217 286 . . 2 . 280 Move 9368 | 32 438 250 593 505 1304 657 109 540 845 381 126 164 533 419 309 832 580 751 Hop 37 | . . . 5 2 1 2 . 1 1 . . . 4 2 1 1 5 12 Pick Up 41 | 4 8 6 1 1 4 2 . 1 . 3 . . 4 1 . 3 2 1 Fast Attach 112 | 2 3 9 8 6 9 5 . 3 6 1 1 5 9 . 3 17 10 15 Attach 37 | 2 1 8 2 3 . 3 1 . 2 1 1 2 1 . . 4 . 6 Detach 33 | 1 . 4 2 4 3 1 . 1 1 3 1 . 1 . . 5 1 5 Swap 30 | . 6 6 3 4 9 . . . . . . . . . . 2 . . Drop 94 | 3 9 13 9 7 15 1 . 1 2 5 . . 2 1 . 10 5 11 Fire 206 | 4 54 76 3 6 16 22 8 13 . . 3 . 1 . . . . . Melee 18 | . . . . . . 6 . . 2 2 . . 4 . . 1 1 2 Ram . | . . . . . . . . . . . . . . . . . . . Kick . | . . . . . . . . . . . . . . . . . . . Crush 24 | . 24 . . . . . . . . . . . . . . . . . Escape Stasis 68 | . . . . . 36 . . . . . 14 . . . . . 18 . Rewire . | . . . . . . . . . . . . . . . . . . . Trap . | . . . . . . . . . . . . . . . . . . . Miscellaneous . | . . . . . . . . . . . . . . . . . . . Route ------- -11/Junkyard -10/Materials (discovered 3 exits: *Mat / Min x2) -9/Materials -9/Mines (discovered 2 exits: *Mat x2) -8/Materials (discovered 2 exits: *Fac x2) -7/Factory -7/Lower Caves -7/Lower Caves -6/Factory -6/Lower Caves -6/Lower Caves -5/Factory -5/Waste -5/Factory (discovered 2 exits: *Fac / *Upp) -5/Upper Caves -5/Upper Caves -4/Factory (discovered 3 exits: Upp x2 / *Arm) -4/Armory -3/Research (discovered 2 exits: Qua x2) History --------- Turn | Location | Event 1 | -11/Junkyard | Discovered new exit (range 3) 65 | -11/Junkyard | Entered Materials 149 | -10/Materials | Identified exit to Mines 312 | -10/Materials | Build established: Mutant 556 | -10/Materials | Core integrity fell below 50% 720 | -10/Materials | Discovered new exit (range 16) 1142 | -10/Materials | Entered another Materials area 1142 | -9/Materials | Evolved 2 slots: Utility x2 1305 | -9/Materials | Lost 4 parts (1p1n1u1w) 1467 | -9/Materials | Lost 5 parts (1p2n1u1w) 1623 | -9/Materials | Discovered new exit (range 6) 1624 | -9/Materials | Identified exit to Mines 1625 | -9/Materials | Entered Mines 1652 | -9/Mines | Discovered new exit (range 3) 1653 | -9/Mines | Identified exit to Materials 1702 | -9/Mines | Discovered exit to Materials (range 16) 1740 | -9/Mines | System corruption reached 10% 1791 | -9/Mines | Assisted by bots powering up and referring to "LRC-V3" 1795 | -9/Mines | Found a damaged Exp. Sensor Array with a note attached 1796 | -9/Mines | Found Prototype Device 1796 | -9/Mines | Identified Exp. Sensor Array 1815 | -9/Mines | Met a Derelict testing a Signal Generator 1894 | -9/Mines | Entered Materials 1894 | -8/Materials | Evolved 2 slots: Propulsion x1, Utility x1 1952 | -8/Materials | Discovered new exit (range 10) 2087 | -8/Materials | Build established: Scout 2128 | -8/Materials | Discovered new exit (range 16) 2156 | -8/Materials | Identified exit to Factory 2156 | -8/Materials | Entered Factory 2156 | -7/Factory | Evolved 2 slots: Propulsion x1, Utility x1 2746 | -7/Factory | Build established: Mutant 2830 | -7/Factory | Discovered new exit (range 11) 2855 | -7/Factory | Identified exit to Lower Caves 2864 | -7/Factory | Entered Lower Caves 2941 | -7/Lower Caves | Lost 4 parts (1p1n1u1w) 3179 | -7/Lower Caves | Learned Factory stockpile data 3305 | -7/Lower Caves | Spotted B-75 Beast 3331 | -7/Lower Caves | Discovered new exit (range 5) 3332 | -7/Lower Caves | Identified exit to Lower Caves 3349 | -7/Lower Caves | Entered another Lower Caves area 3415 | -7/Lower Caves | Discovered new exit (range 7) 3418 | -7/Lower Caves | Identified exit to Factory 3418 | -7/Lower Caves | Entered Factory 3418 | -6/Factory | Evolved 2 slots: Utility x2 3540 | -6/Factory | Fabricated Adv. Datajack (x1) 3613 | -6/Factory | Fabricated Hrd. Medium Armor Plating? 3754 | -6/Factory | Discovered new exit (range 10) 3758 | -6/Factory | Identified exit to Lower Caves 3758 | -6/Factory | Entered Lower Caves 3921 | -6/Lower Caves | Learned Factory stockpile data 4047 | -6/Lower Caves | Encountered a Warlord checkpoint 4152 | -6/Lower Caves | Discovered new exit (range 9) 4166 | -6/Lower Caves | Identified exit to Lower Caves 4193 | -6/Lower Caves | Entered another Lower Caves area 4262 | -6/Lower Caves | Learned Factory emergency access door positions 4367 | -6/Lower Caves | Build established: Derelict-Mutant 4431 | -6/Lower Caves | Released all parts (7) 4440 | -6/Lower Caves | Discovered new exit (range 12) 4445 | -6/Lower Caves | Entered Factory 4445 | -5/Factory | Evolved 2 slots: Utility x2 4446 | -5/Factory | Lost 7 parts (4n2u1w) 4535 | -5/Factory | Manually triggered Chute Trap 4535 | -5/Factory | Sucked down chute 4535 | -5/Factory | Entered Waste 4546 | -5/Waste | Spotted C-40 Crusher 4582 | -5/Waste | Spotted C-40 Crusher 4713 | -5/Waste | Build established: Mutant 4809 | -5/Waste | Crushed by Compactor (1 part destroyed, 2 dropped) 4813 | -5/Waste | Crushed by Compactor (1 part destroyed, 1 dropped) 4816 | -5/Waste | Crushed by Compactor (1 part destroyed, 1 dropped) 4816 | -5/Waste | Spotted C-40 Crusher 4830 | -5/Waste | Spotted C-40 Crusher 4833 | -5/Waste | Spotted C-40 Crusher 4838 | -5/Waste | Spotted C-40 Crusher 4847 | -5/Waste | Lost 3 parts (3u) 4852 | -5/Waste | Discovered new exit (range 10) 4857 | -5/Waste | Entered Factory 4945 | -5/Factory | Fabricated E-15 Imp (x2) 5383 | -5/Factory | Discovered new exit (range 6) 5385 | -5/Factory | Discovered new exit (range 5) 5391 | -5/Factory | Entered Upper Caves 5478 | -5/Upper Caves | Spotted B-75 Beast 5551 | -5/Upper Caves | Discovered new exit (range 6) 5553 | -5/Upper Caves | Entered another Upper Caves area 5559 | -5/Upper Caves | Discovered new exit (range 14) 5632 | -5/Upper Caves | Learned Factory emergency access door positions 5655 | -5/Upper Caves | Learned Factory stockpile data 5679 | -5/Upper Caves | Entered Factory 5679 | -4/Factory | Evolved 2 slots: Power x1, Propulsion x1 5746 | -4/Factory | Identified exit to Upper Caves 5746 | -4/Factory | Identified exit to Armory 5795 | -4/Factory | Found Prototype Hackware 5795 | -4/Factory | Identified Exp. System Shield 5805 | -4/Factory | Spotted B-86 Titan 5913 | -4/Factory | Found Prototype Device 5913 | -4/Factory | Identified Exp. ECM Suite 5932 | -4/Factory | Found Prototype Processor 5932 | -4/Factory | Identified Exp. Signal Interpreter 5956 | -4/Factory | Exp. System Shield fried by hacking feedback 6053 | -4/Factory | Entered Armory 6123 | -4/Armory | Lost 4 parts (4u) 6292 | -4/Armory | Discovered new exit (range 3) 6293 | -4/Armory | Identified exit to Research 6295 | -4/Armory | Entered Research 6295 | -3/Research | Evolved 2 slots: Utility x2 6314 | -3/Research | Identified exit to Quarantine 6377 | -3/Research | Adv. Hacking Suite fried by hacking feedback 6680 | -3/Research | Build established: Sprinter 6783 | -3/Research | Spotted B-86 Titan 6805 | -3/Research | Core integrity fell below 50% 6831 | -3/Research | Lost 13 parts (1p6n6u) 6837 | -3/Research | Core integrity fell below 20% 6866 | -3/Research | Spotted B-86 Titan 6870 | -3/Research | Destroyed by S-43 Plague with Heavy Machine Gun Last Messages --------------- 06804_ Slug penetrates Catalytron. 06805_ Slug penetrates Terminal. 06806_ K-01 Serf collects debris. 06807_ Penetrated by Slug. 06816_ Acquired Prototype Storage. 06816_ Identified Exp. Energy Well. 06817_ K-01 Serf destroyed. 06820_ U-05 Engineer destroyed. 06820_ R-10 Processor collects Wheel. 06821_ K-01 Serf collects debris. 06822_ ALERT: Suspicious intruders detected, dispatching Cutter reinforcements to area. 06830_ Acquired Prototype Flight Unit. 06830_ Identified Cld. Impulse Thruster. 06836_ P-80 Master resets K-01 Serf, system corruption cleaned. 06836_ Cld. Field Propulsion Drive destroyed. 06838_ K-01 Serf destroyed. 06868_ Graphene Brace destroyed. 06869_ Penetrated by Slug. [Achievement: Achiever] Map ----- +----------------------------------------------------+ | # ? ? #?????# ##########???????????????????? | | # #?????# # #???????????????????? | | # #?????# # #???????????????????? | | # #?????# + #???????????????????? | | # """ #?????# # #???????????????????? | | # """ #?????# # #???????????????????? | | # """ #?????# # #???????????????????? | | ? ] #?????# # #???????????????????? | | ??? ???????# # #???????????????????? | | #####+########## # #???????????????????? | | #####s####???????????????????? | | #???# #??????????????????????? | | #???# #?????#????????????????? | | #???# #???? #????????????????? | | ###+########/############ ##### #????????????????? | | # ! / k #????????????????? | | ! # ####### #????????????????? | | #""" #?????# #????????????????? | | #""" #?????# #????????????????? | | #""" #?????# #????????????????? | | #""" !#?????# #????????????????? | | #""" #???### !| #????????????????? | | #??? #???# B !| #????????????????? | | #???! #???# B || #????????????????? | | #???######???### #????????????????? | | #??????????????#@ #????????????????? | | #??????????????# #????????????????? | | ##########?????????????? #????????????????? | | ????????????????????????#+####;##????????????????? | | ??????????????????????????????##?????????????????? | | ?????????????????????????????????????????????????? | | ?????????????????????????????????????????????????? | | ?????????????????????????????????????????????????? | | ?????????????????????????????????????????????????? | | ?????????????????????????????????????????????????? | | ?????????????????????????????????????????????????? | | ?????????????????????????????????????????????????? | | ?????????????????????????????????????????????????? | | ?????????????????????????????????????????????????? | | ?????????????????????????????????????????????????? | | ?????????????????????????????????????????????????? | | ?????????????????????????????????????????????????? | | ?????????????????????????????????????????????????? | | ?????????????????????????????????????????????????? | | ?????????????????????????????????????????????????? | | ?????????????????????????????????????????????????? | | ?????????????????????????????????????????????????? | | ?????????????????????????????????????????????????? | | ?????????????????????????????????????????????????? | | ?????????????????????????????????????????????????? | +----------------------------------------------------+ Best States ------------- Heat Dissipation 56 Coolant Potential 80 Energy Generation 39 Energy Capacity 700 Matter Stores 350 Matter Capacity 800 Sight Range 16 Robot Scan Range 20 Terrain Scan Range 16 Terrain Scan Density 10 Jamming Range 12 Cloak Strength 3 Power Amplification 30 Additional Mass Support 9 Corruption Block 2 Armor Coverage 450 Resistance: TH 30 Propulsion Shielding 66 Phase Shifting 5 Evasion (%) 76 Targeting Accuracy 6 Melee Accuracy 6 Recoil Reduction 2 Offensive Hacking 14 Defensive Hacking 30 Item Schematics ----------------- Hrd. Medium Armor Plating | -8/Materials | Scanalyzed Impact Mace | -7/Factory | Scanalyzed Robot Schematics ------------------ None Fabricated ------------ Adv. Datajack | x1 | -6/Factory | Preloaded Hrd. Medium Armor Plating | x1 | -6/Factory E-15 Imp | x2 | -5/Factory | Preloaded Alien Tech Used ----------------- None Achievements -------------- Achiever Cya! Decoder Ring Dodgeball, But With Guns Dynamic Key GoHome() Knowing Is Half The Battle My Command Is Your Wish Challenges ------------ None Game ------ Seed CargoRecoilBlade Manual? 0 Play Time 02:25:01 Cumulative 26.1 hours Start 2023.07.15 @ 14:05:29 End 2023.07.15 @ 16:29:32 Sessions 1 Manual Loads 0 Difficulty Rogue Special Mode None Game No. 21 Rogue 20 Adventurer 1 Explorer 0 Win Type - Total 0 Types 0/0/0/0/0/0/0/0/0 Lore% 21 Gallery% 35 Achievement% 25 Wizard Run 0 Options --------- ASCII 0 Keyboard 0 Movement Mouse Keybinds 0 Fullscreen 2 Font 24/Proggy Map View 76x50 Tactical HUD 1 Map Filters NONE Filters NONE Steam 1 RUN: 648d1f71-e4fa-4189-97e9-ae0abb6d1399